Cogmind - Beta 13 @@@ ROGUE MODE // 2024.04.05 @ 19:20:47 Player: Spuddz Result: Destroyed by G-47 Trooper with Particle Gun Performance ------------- Evolutions (3) 1500 Regions Visited (7) 1400 Robots Destroyed (92) 460 Value Destroyed (3074) 3074 Prototype IDs (4) 80 Alien Tech Used (0) 0 Bonus (497) 497 TOTAL SCORE: 7011 Bonus ------- High Alert Combat Kills 190 Follower Combat Kills 7 Aligned with FarCom 300 Cogmind --------- Core Integrity 0/700 Matter 37/300 Energy 100/100 System Corruption 2% Temperature Cool (18) Movement Core (1350) Ox26 Location -7/Factory Parts ------- > --- POWER (1) -------- (None) > --- PROPULSION (3) --- (None) > --- UTILITY (5) ------ Huge Storage Unit > --- WEAPON (4) ------- (None) > --- INVENTORY (25) --- Ion Engine Light Deuterium Engine Thermal Generator Structural Scanner Advanced Terrain Scan Processor Transport Network Coupler Advanced ECM Suite Improved Medium Armor Plating Improved Medium Armor Plating Improved Shield Generator Hacking Suite Hacking Suite Advanced Assault Cannon Shock Bomb Launcher Proton Missile Launcher Mini Grenade Launcher Peak State ------------ > --- POWER ------------ Nuclear Core > --- PROPULSION ------- Aluminum Leg Carbon-fiber Leg Titanium Leg > --- UTILITY ---------- Advanced Heat Sink Huge Storage Unit Structural Scanner Advanced ECM Suite Trap Reconfigurator > --- WEAPON ----------- XL Autogun Array > --- INVENTORY -------- Ion Engine Light Deuterium Engine Light Nuclear Core Aluminum Leg Aluminum Leg Titanium Leg Titanium Leg Thermal Generator Structural Scanner Transport Network Coupler Hardened Heavy Armor Plating Improved Medium Armor Plating Improved Medium Armor Plating Improved Medium Armor Plating Improved Medium Armor Plating Improved Shield Generator Hacking Suite Hacking Suite Light Assault Rifle Light Assault Rifle Autogun Shock Bomb Launcher [Rating: 72] Favorites ----------- Power Light Ion Engine Engine Light Ion Engine Power Core Nuclear Core Propulsion Aluminum Leg Treads Light Treads Leg Aluminum Leg Flight Unit Flight Unit Utility Structural Scanner Device Structural Scanner Storage Large Storage Unit Protection Hardened Heavy Armor Plating Weapon Light Assault Rifle Energy Gun EM Pulse Gun Ballistic Gun Light Assault Rifle Ballistic Cannon Bore Cannon Launcher Missile Launcher Build | -11 -10 -10 -10 -9 -8 -8 -7 ------- Run | Yrd Mat Min Exi Min Mat Sto Fac Slots Evolved 6 | . . . . . 4 . 2 Power . | . . . . . . . . Propulsion 1 | . . . . . 1 . . Utility 3 | . . . . . 1 . 2 Weapon 2 | . . . . . 2 . . Parts Attached 69 | 8 3 9 1 10 4 8 26 Power 8 | 2 . 1 . 3 . 1 1 Engine 6 | 2 . 1 . 3 . . . Core 2 | . . . . . . 1 1 Reactor . | . . . . . . . . Propulsion 18 | 2 . 2 . 3 2 2 7 Treads 1 | . . 1 . . . . . Leg 16 | 2 . 1 . 2 2 2 7 Wheel . | . . . . . . . . Hover . | . . . . . . . . Flight 1 | . . . . 1 . . . Utility 22 | 1 2 3 1 3 1 5 6 Device 11 | . 1 1 1 1 1 3 3 Storage 3 | 1 . 1 . . . 1 . Processor . | . . . . . . . . Hackware . | . . . . . . . . Protection 8 | . 1 1 . 2 . 1 3 Artifact . | . . . . . . . . Weapon 21 | 3 1 3 . 1 1 . 12 Energy Gun 3 | 2 1 . . . . . . Energy Cannon . | . . . . . . . . Ballistic Gun 9 | 1 . 2 . 1 1 . 4 Ballistic Cannon 6 | . . 1 . . . . 5 Launcher 3 | . . . . . . . 3 Special Weapon . | . . . . . . . . Impact Weapon . | . . . . . . . . Slashing Weapon . | . . . . . . . . Piercing Weapon . | . . . . . . . . Special Melee Weapon . | . . . . . . . . Unidentified Prototypes 4 | . . . 1 . 1 . 2 Parts Lost 33 | . . 6 . 6 . . 21 Power 5 | . . 1 . 2 . . 2 Propulsion 13 | . . 3 . 2 . . 8 Utility 6 | . . . . 1 . . 5 Weapon 9 | . . 2 . 1 . . 6 Highest Loss Streak 13 | . . 5 . 3 . . 13 To Critical Strikes . | . . . . . . . . Average Slot Usage (%) 81 | . 98 84 85 86 71 72 80 Engine 7 | . 14 13 14 13 9 3 . Core 2 | . . . . . . 5 6 Treads 4 | . . 8 14 5 . . . Leg 15 | . 28 10 . 9 26 27 22 Device 14 | . 1 10 14 10 17 17 18 Storage 10 | . 14 14 14 14 9 9 7 Protection 2 | . 10 3 . 3 . . 4 Energy Gun 2 | . 14 11 . . . . . Ballistic Gun 10 | . 14 10 14 13 9 9 8 Ballistic Cannon 6 | . . . 14 14 . . 7 Naked Turns . | . . . . . . . . Heaviest Build 126 | 14 17 34 34 36 42 104 126 Greatest Support 49 | 20 20 20 20 20 30 42 49 Greatest Overweight (x) 35 | 1 . 2 1 11 2 2 35 Average Overweight (x) 1 | . . . 1 1 1 1 2 Largest Inventory Capacity 25 | 8 8 15 15 15 15 25 25 Average Capacity 18 | 6 8 14 15 15 15 23 25 Most Carried 25 | 5 6 9 13 15 15 22 25 Average Carried 14 | 3 4 7 8 14 12 19 19 Final Capacity 25 | 8 8 15 15 15 15 25 25 Final Carried 22 | 3 6 8 13 15 15 22 16 Class Distribution -------------------- 46% | Mutant 18% | Scavenger-Tank 17% | Scavenger-Skirmisher 12% | Skirmisher 5% | Scavenger-Mutant Dominant Class ---------------- Mutant | -10/Materials Mutant | -10/Mines Mutant | -10/Exiles Mutant | -9/Mines Scavenger-Skirmisher | -8/Materials Skirmisher | -8/Storage Scavenger-Tank | -7/Factory Resources | -11 -10 -10 -10 -9 -8 -8 -7 ----------- Run | Yrd Mat Min Exi Min Mat Sto Fac Matter Collected 3094 | 220 126 79 . 291 241 1019 1118 Remotely . | . . . . . . . . Salvage Created 3471 | . 180 103 . 234 311 1533 1110 Parts 219 | . 12 11 . 26 20 87 63 Haulers Intercepted 5 | . 1 . . . . 4 . Recyclers Shooed . | . . . . . . . . Parts Field Recycled . | . . . . . . . . Retrieved Matter . | . . . . . . . . Parts Self-Destructed . | . . . . . . . . Prevented . | . . . . . . . . Kills | -11 -10 -10 -10 -9 -8 -8 -7 ------- Run | Yrd Mat Min Exi Min Mat Sto Fac Combat Hostiles Destroyed 64 | . 2 5 . 8 5 21 23 Guns 41 | . 1 5 . 2 5 20 8 Cannons 17 | . . . . 6 . . 11 AOE 6 | . 1 . . . . 1 4 Classes Destroyed 13 | . 4 2 . 1 2 3 1 Worker 5 | . . . . 1 . 3 1 Builder 6 | . 1 . . 1 . 1 3 Hauler 5 | . 1 . . . . 4 . Recycler 3 | . . . . . . 2 1 Operator 2 | . . . . . . 1 1 Watcher 7 | . 1 . . . 2 2 2 Swarmer 11 | . . 4 . 3 . . 4 Grunt 37 | . 2 . . 5 2 17 11 Brawler 1 | . . . . . 1 . . Duelist 2 | . . . . . . 1 1 Sentry 9 | . . . . . 2 3 4 Demolisher 1 | . . 1 . . . . . Programmer 3 | . . . . . . . 3 Best Kill Streak 8 | . 2 2 . 5 3 8 6 Combat Bots Only 5 | . 2 2 . 4 3 4 5 Max Kills in Single Turn 4 | . 2 1 . 1 1 4 2 Gunslinging . | . . . . . . . . Exploded 2 | . 1 . . . . 1 2 Melee . | . . . . . . . . Uniques/NPCs Destroyed . | . . . . . . . . Combat | -11 -10 -10 -10 -9 -8 -8 -7 -------- Run | Yrd Mat Min Exi Min Mat Sto Fac Hostile Shots Fired 611 | . 8 36 . 114 7 37 409 Missed 192 | . 1 7 . 39 1 13 131 Damage Taken 5950 | . 157 689 . 712 93 353 3946 Core 959 | . 26 66 . 118 . 43 706 Absorbed by Shields 39 | . . . . . . 39 . Core Remaining (%) 69 | 100 . . . 16 . 92 . Volleys Fired 238 | . 12 17 . 35 10 61 103 Largest 4 | . 2 2 . 2 1 1 4 Hottest 152 | . 60 60 . 77 60 60 152 Shots Fired 426 | . 24 29 . 58 10 61 244 Gun 288 | . 24 29 . 23 10 61 141 Cannon 126 | . . . . 35 . . 91 Launcher 12 | . . . . . . . 12 Special . | . . . . . . . . Kinetic 389 | . 12 16 . 58 10 61 232 Thermal . | . . . . . . . . Explosive 8 | . . . . . . . 8 Electromagnetic 29 | . 12 13 . . . . 4 Robot Hit Streak 12 | . 7 9 . 4 3 12 9 Robot Miss Streak 7 | . 2 3 . 4 3 7 4 Penetration Max . | . . . . . . . . Secondary Targets . | . . . . . . . . Shots Hit Robots 247 | . 16 16 . 19 10 55 131 Core Hits 154 | . 8 10 . 10 9 54 63 Critical Kills 3 | . . . . 3 . . . Critical Parts Destroyed 4 | . . . . 4 . . . Critical Strikes 10 | . 1 1 . 7 . . 1 Destroy 7 | . . . . 7 . . . Blast 1 | . . . . . . . 1 Corrupt 2 | . 1 1 . . . . . Melee Attacks . | . . . . . . . . Impact . | . . . . . . . . Slashing . | . . . . . . . . Piercing . | . . . . . . . . Sneak Attacks . | . . . . . . . . Combat Hostiles . | . . . . . . . . Follow-up Attacks . | . . . . . . . . Damage Inflicted 7883 | . 345 169 . 394 405 3003 3567 Guns 5405 | . 230 169 . 56 405 2753 1792 Cannons 1592 | . . . . 338 . . 1254 Explosions 872 | . 115 . . . . 250 507 Melee . | . . . . . . . . Ramming 14 | . . . . . . . 14 Kinetic 6764 | . 77 89 . 394 405 2753 3046 Thermal 115 | . 115 . . . . . . Explosive 518 | . . . . . . 250 268 Electromagnetic 472 | . 153 80 . . . . 239 Impact . | . . . . . . . . Slashing . | . . . . . . . . Piercing . | . . . . . . . . Highest Corruption 2 | . . . . . . . 2 Average Corruption 1 | . . . . . . . 1 Corruption Purged . | . . . . . . . . Corruption Blocked . | . . . . . . . . Effects 14 | . . . . . . . 14 Message Errors 4 | . . . . . . . 4 Matter Fused 1 | . . . . . . . 1 Energy Discharges 1 | . . . . . . . 1 Data Loss (minor) 3 | . . . . . . . 3 Data Loss (major) 1 | . . . . . . . 1 Misfires 1 | . . . . . . . 1 Alerts 2 | . . . . . . . 2 Weapon Failures 1 | . . . . . . . 1 Overload Shots . | . . . . . . . . Overflow Damage 89 | . . . . 18 . 24 47 Projectiles 41 | . . . . 18 . . 23 Explosions 48 | . . . . . . 24 24 Melee . | . . . . . . . . Knockbacks 8 | . . . . 2 . . 6 Impact . | . . . . . . . . Kinetic 8 | . . . . 2 . . 6 Secondary . | . . . . . . . . Self-Inflicted Damage 180 | . 69 . . . . . 111 Shots 5 | . 2 . . . . . 3 Rammed . | . . . . . . . . Targets Rammed 2 | . . . . . . . 2 Kicked 2 | . . . . . . . 2 Crushed . | . . . . . . . . Highest Temperature 359 | . 111 15 . 330 154 359 147 Average Temperature 71 | . 41 7 . 104 60 91 33 Received Heat Transfer 2339 | . 54 . . 228 36 206 1815 Effects 1 | . . . . 1 . . . Energy Bleed 1 | . . . . 1 . . . Siege Activations . | . . . . . . . . Robots Corrupted . | . . . . . . . . Combat Hostiles . | . . . . . . . . Parts Fried . | . . . . . . . . Impact Corruptions . | . . . . . . . . Robots Melted . | . . . . . . . . Combat Hostiles . | . . . . . . . . Parts Melted . | . . . . . . . . Heat Transferred 100 | . 100 . . . . . . Parts Sabotaged . | . . . . . . . . Parts Stolen . | . . . . . . . . Parts Stripped . | . . . . . . . . Power Chain Reactions 2 | . 2 . . . . . . Alert | -11 -10 -10 -10 -9 -8 -8 -7 ------- Run | Yrd Mat Min Exi Min Mat Sto Fac Peak Influence 640 | . 150 162 . 169 210 533 640 Initial 224 | . . 58 . . 7 88 224 Average 234 | . 73 50 . 51 130 331 392 Maximum Alert Level 2 | . . . . . 1 2 2 Low Security (%) 46 | 100 100 100 . 100 85 15 . Level 1 31 | . . . . . 14 59 50 Level 2 22 | . . . . . . 25 49 Level 3 . | . . . . . . . . Level 4 . | . . . . . . . . Level 5 . | . . . . . . . . High Security . | . . . . . . . . Max Security . | . . . . . . . . Squads Dispatched 9 | . . . . . . 3 6 Investigation . | . . . . . . . . Extermination 3 | . . . . . . . 3 Reinforcement 6 | . . . . . . 3 3 Assault . | . . . . . . . . Garrison . | . . . . . . . . Intercept . | . . . . . . . . Searches Triggered . | . . . . . . . . Construction Impeded 2 | . . . . . . 1 1 Haulers Reinforced . | . . . . . . . . Active Scanning Responses . | . . . . . . . . Cargo Convoy Interrupts . | . . . . . . . . Stealth | -11 -10 -10 -10 -9 -8 -8 -7 --------- Run | Yrd Mat Min Exi Min Mat Sto Fac Distress Signals 4 | . . . . . . 2 2 Communications Jammed . | . . . . . . . . Distress Signals . | . . . . . . . . Times Spotted 98 | . 5 9 . 10 7 27 40 Peak Tracking Total 7 | . 2 3 . 4 3 4 7 Tactical Retreats 10 | . 1 2 . 1 . 1 5 Traps | -11 -10 -10 -10 -9 -8 -8 -7 ------- Run | Yrd Mat Min Exi Min Mat Sto Fac Traps Triggered 1 | . . . . . . 1 . Indirectly . | . . . . . . . . Trap Hack Attempts . | . . . . . . . . Triggered . | . . . . . . . . Disarmed . | . . . . . . . . Reprogrammed . | . . . . . . . . Reused 1 | . . . . . . 1 . Traps Reconfigurated 10 | . . . . . . 10 . Traps Extracted . | . . . . . . . . Installed . | . . . . . . . . Triggered 1 | . . . . . . 1 . Machines | -11 -10 -10 -10 -9 -8 -8 -7 ---------- Run | Yrd Mat Min Exi Min Mat Sto Fac Machines Disabled 15 | . 2 . . . 1 6 6 Max in Single Turn 2 | . 1 . . . 1 1 2 Machines Repaired . | . . . . . . . . Machines Dismantled . | . . . . . . . . Machines Sabotaged . | . . . . . . . . Overloaded Fab Kills . | . . . . . . . . Hacking | -11 -10 -10 -10 -9 -8 -8 -7 --------- Run | Yrd Mat Min Exi Min Mat Sto Fac Machines Accessed 7 | . . . 4 . . 2 1 Terminals 3 | . . . . . . 2 1 Fabricators . | . . . . . . . . Repair Stations . | . . . . . . . . Recycling Units . | . . . . . . . . Scanalyzers . | . . . . . . . . Garrison Access . | . . . . . . . . Total Hacks 54 | . . . 49 . . 4 1 Successful 51 | . . . 49 . . 1 1 Failed 3 | . . . . . . 3 . Catastrophic 1 | . . . . . . 1 . Database Lockouts . | . . . . . . . . Manual 3 | . . . 1 . . 2 . Terminals 5 | . . . . . . 4 1 Fabricators . | . . . . . . . . Repair Stations . | . . . . . . . . Recycling Units . | . . . . . . . . Scanalyzers . | . . . . . . . . Garrison Access . | . . . . . . . . Terminal Hacks 51 | . . . 49 . . 1 1 Record 49 | . . . 49 . . . . Open DSF 1 | . . . . . . . 1 Alert Level 1 | . . . . . . 1 . Fabricator Hacks . | . . . . . . . . Repair Station Hacks . | . . . . . . . . Recycling Unit Hacks . | . . . . . . . . Scanalyzer . | . . . . . . . . Garrison Access Hacks . | . . . . . . . . Unauthorized Hacks . | . . . . . . . . Terminals . | . . . . . . . . Fabricators . | . . . . . . . . Repair Stations . | . . . . . . . . Recycling Units . | . . . . . . . . Scanalyzers . | . . . . . . . . Garrison Access . | . . . . . . . . Data Cores Recovered . | . . . . . . . . Used . | . . . . . . . . Hacking Detections 1 | . . . . . . 1 . Full Trace Events . | . . . . . . . . Feedback Events . | . . . . . . . . Feedback Blocked . | . . . . . . . . Robot Schematics Acquired . | . . . . . . . . Robots Built . | . . . . . . . . Authchips . | . . . . . . . . Time . | . . . . . . . . Total Robot Build Rating . | . . . . . . . . Part Schematics Acquired . | . . . . . . . . Parts Built . | . . . . . . . . Authchips . | . . . . . . . . Time . | . . . . . . . . Total Part Build Rating . | . . . . . . . . Parts Repaired . | . . . . . . . . Time . | . . . . . . . . Parts Recycled . | . . . . . . . . Recycled Matter . | . . . . . . . . Retrieved Matter . | . . . . . . . . Retrieved Components . | . . . . . . . . Parts Scanalyzed . | . . . . . . . . Part Schematics Acquired . | . . . . . . . . Parts Damaged . | . . . . . . . . Bothacking | -11 -10 -10 -10 -9 -8 -8 -7 ------------ Run | Yrd Mat Min Exi Min Mat Sto Fac Used RIF Installer . | . . . . . . . . Robots Hacked . | . . . . . . . . Non-combat . | . . . . . . . . Combat . | . . . . . . . . Robot Hacks Applied . | . . . . . . . . Relay Couplers Released . | . . . . . . . . Fabnet Peak Effective % . | . . . . . . . . Robots Rewired . | . . . . . . . . Allies Hacked . | . . . . . . . . Hacks Repelled . | . . . . . . . . Allies | -11 -10 -10 -10 -9 -8 -8 -7 -------- Run | Yrd Mat Min Exi Min Mat Sto Fac Total Allies 1 | . . 1 . . . . . Largest Group 1 | . . 1 . . . . . Highest-Rated Group 31 | . . 31 . . . . . Highest-Rated Ally 31 | . . 31 . . . . . Total Orders . | . . . . . . . . Ally Attacks 2 | . . 2 . . . . . Total Damage 22 | . . 22 . . . . . Kills 1 | . . 1 . . . . . Allies Corrupted . | . . . . . . . . Allies Melted . | . . . . . . . . Intel | -11 -10 -10 -10 -9 -8 -8 -7 ------- Run | Yrd Mat Min Exi Min Mat Sto Fac Robot Analysis Total . | . . . . . . . . Derelict Logs Recovered 3 | . . 2 . 1 . . . Drone Launches . | . . . . . . . . Drone Recoveries . | . . . . . . . . Exploration | -11 -10 -10 -10 -9 -8 -8 -7 ------------- Run | Yrd Mat Min Exi Min Mat Sto Fac Turns Passed 7158 | 47 308 985 1328 976 216 1334 1964 Spaces Moved 2678 | 34 201 443 549 340 100 414 597 Core 43 | 18 . . . 24 . . 1 Treads 937 | . . 240 549 148 . . . Legs 1691 | 16 201 203 . 161 100 414 596 Wheels . | . . . . . . . . Hover . | . . . . . . . . Flight 7 | . . . . 7 . . . Fastest Speed 50 | 50 120 120 240 190 190 190 263 Average Speed 230 | 91 120 204 240 250 191 244 272 Slowest Speed 1800 | 120 120 260 240 680 260 263 1800 Overloaded Moves . | . . . . . . . . Propulsion Burnouts . | . . . . . . . . Robots Hopped . | . . . . . . . . Cave-ins Triggered . | . . . . . . . . Exploration Rate (%) 48 | 4 27 95 91 67 11 71 18 Regions Visited 7 Branch Regions 4 Pre-discovered Areas 3 | . . 1 1 1 . . . Known Exits Taken 1 | . . . . . 1 . . Unknown Exits Taken 6 | 1 1 1 1 1 . 1 . Scrap Searched 3 | . . 1 . 2 . . . Spaces Dug 6 | . . . . . . 2 4 Terrain Destroyed 238 | . 5 . . 21 16 77 119 Melee . | . . . . . . . . Projectile 121 | . . . . 21 16 63 21 AOE 117 | . 5 . . . . 14 98 Terrain Rammed . | . . . . . . . . Walls Destroyed . | . . . . . . . . Machines Disabled . | . . . . . . . . Actions | -11 -10 -10 -10 -9 -8 -8 -7 --------- Run | Yrd Mat Min Exi Min Mat Sto Fac Total 3402 | 47 243 493 561 409 127 736 786 Wait 328 | . 24 17 4 17 . 232 34 Move 2671 | 33 200 442 548 339 99 413 597 Hop . | . . . . . . . . Pick Up 65 | 6 4 7 5 8 9 11 15 Fast Attach 4 | 3 . . . 1 . . . Attach 39 | 3 1 5 . 6 3 . 21 Detach 3 | . . . . . . . 3 Swap 27 | 2 2 4 1 3 1 8 6 Drop 20 | . . 1 3 . 5 6 5 Fire 238 | . 12 17 . 35 10 61 103 Melee . | . . . . . . . . Ram . | . . . . . . . . Kick 2 | . . . . . . . 2 Crush . | . . . . . . . . Escape Stasis 5 | . . . . . . 5 . Rewire . | . . . . . . . . Trap . | . . . . . . . . Miscellaneous . | . . . . . . . . Route ------- -11/Scrapyard -10/Materials -10/Mines (discovered 3 exits: [*Mat x2] / *Exi) -10/Exiles (discovered 2 exits: [*Min x2]) -9/Mines -8/Materials (discovered 2 exits: *Sto x2) -8/Storage -7/Factory History --------- Turn | Location | Event 8 | -11/Scrapyard | Discovered new exit (range 16) 48 | -11/Scrapyard | Entered Materials 288 | -10/Materials | Discovered new exit (range 16) 307 | -10/Materials | Build established: Mutant 356 | -10/Materials | Entered Mines 359 | -10/Mines | Received a Mining Laser from a helpful Derelict 389 | -10/Mines | Met a Derelict bent on vengeance 572 | -10/Mines | Discovered new exit (range 7) 649 | -10/Mines | Assembled infested the area 766 | -10/Mines | Lost 5 parts (1p3n1w) 857 | -10/Mines | Discovered new exit (range 9) 1202 | -10/Mines | Learned location of Recycling (-8) 1312 | -10/Mines | A weapon hastily lodged in a ceiling crevice suddenly fell to the ground 1327 | -10/Mines | Discovered new exit (range 6) 1341 | -10/Mines | Entered Exiles 1408 | -10/Exiles | Discovered new exit (range 15) 1492 | -10/Exiles | Met 8R-AWN 1551 | -10/Exiles | Met EX-HEX 1647 | -10/Exiles | Met EX-DEC 1725 | -10/Exiles | Visited The Gauntlet 2072 | -10/Exiles | Discovered new exit (range 14) 2165 | -10/Exiles | Learned location of Zion (-7) 2230 | -10/Exiles | Met EX-BIN 2271 | -10/Exiles | Aligned with FarCom system 2273 | -10/Exiles | Given EX-Vault access code 2398 | -10/Exiles | Opened EX-Vault 2410 | -10/Exiles | Found Prototype Ballistic Gun 2416 | -10/Exiles | Found Prototype Device 2417 | -10/Exiles | Identified Trap Reconfigurator 2429 | -10/Exiles | Found Prototype Flight Unit 2491 | -10/Exiles | Warned to stay clear of 0b10 Research branches 2669 | -10/Exiles | Stole two prototypes: Trap Reconfigurator, XL Autogun Array 2669 | -10/Exiles | Entered Mines 2926 | -9/Mines | Excavation squad dispatched 2926 | -9/Mines | A large section of the Mines collapsed 3069 | -9/Mines | Core integrity fell below 50% 3176 | -9/Mines | Excavation squad dispatched 3274 | -9/Mines | Core integrity fell below 20% 3321 | -9/Mines | Lost 3 parts (1p1u1w) 3426 | -9/Mines | Excavation squad dispatched 3590 | -9/Mines | Discovered new exit (range 11) 3618 | -9/Mines | Build established: Scavenger-Mutant 3645 | -9/Mines | Entered Materials 3645 | -8/Materials | Evolved 4 slots: Propulsion x1, Utility x1, Weapon x2 3646 | -8/Materials | Identified exit to Storage 3646 | -8/Materials | Identified XL Autogun Array 3827 | -8/Materials | Discovered exit to Storage (range 7) 3861 | -8/Materials | Entered Storage 3943 | -8/Storage | Build established: Scavenger-Skirmisher 4677 | -8/Storage | Build established: Skirmisher 5182 | -8/Storage | Discovered new exit (range 5) 5195 | -8/Storage | Entered Factory 5195 | -7/Factory | Evolved 2 slots: Utility x2 5197 | -7/Factory | FarCom data flow suspended 5201 | -7/Factory | Identified exit to DSF 5490 | -7/Factory | Build established: Scavenger-Skirmisher 6114 | -7/Factory | Lost 3 parts (3n) 6127 | -7/Factory | Build established: Scavenger-Tank 7138 | -7/Factory | Core integrity fell below 50% 7156 | -7/Factory | Core integrity fell below 20% 7159 | -7/Factory | Destroyed by G-47 Trooper with Particle Gun Last Messages --------------- 07113_ Acquired 9 matter. 07114_ Critical hit (Burn: +37). 07115_ Titanium Leg destroyed. 07116_ G-47 Trooper knocked back. 07117_ Adv. Assault Cannon destroyed. 07118_ G-47 Trooper suffers critical hit (Burn). 07121_ Missile Launcher destroyed. 07124_ Acquired 2 matter. 07128_ G-47 Trooper heat damages Imp. Heat Sink. 07129_ Kicked G-47 Trooper. 07133_ G-47 Trooper heat damages Lgt. Nuclear Core. 07135_ Imp. Medium Armor Plating destroyed. 07136_ Adv. Assault Cannon destroyed. 07137_ Titanium Leg destroyed. 07142_ Critical hit (Burn: +37). 07145_ Structural Scanner destroyed. 07151_ Critical hit (Burn: +37). 07152_ Adv. Assault Cannon destroyed. 07153_ Carbon-fiber Leg destroyed. Map ----- +----------------------------------------------------+ | ???????## ???????????????????????????????????? | | ???????## ???????????????????????????????????? | | ??????? # ???????????????????????????????????? | | ??????? # ???????????????????????????????????? | | ??????? # ######### ?????????????????????????? | | ????????## ###########?????????????????????????? | | ????????## ## ?????????????????????????? | | ????????## ## ?????????????????????????? | | ??????? ## ## """"""""?????????????????????????? | | ## ## ?????????????????????????? | | ##+###### # """""""""????????????????????????? | | "" # ???????????????????????? | | T + """"""""" # ????????????????????? | | # # ????????????????????? | | ?+#######[ *# """"""""" # ????????????????????? | | ? #### ### # ????????????????????? | | ?????? #### ### """"""""" # ?????? ????????????? | | ?????? + ### # ????? ?????????????? | | ?????? #### #####/#####+#### ????? ??????????????? | | ?????? #### ##### ##### ##??????? ???????????????? | | ????????###%##?## ##?## ##?????? ????????????????? | | ????????### ##### ##### ##????? ?????????????????? | | ????????### ##### ##### ###? ??? ## ?????????? | | ????????### #####/##???#### ?????????? | | ????????### g ##### # ? # ?????????? | | ????????### @ g% # ! !!!# ?????????? | | ???????#### gggu/ !! # ?????????? | | ???????####+######## # ! !! # ?????????? | | ???????## ##### ## ######### ?????????? | | ???????## ##?##o ## ######### ?????????? | | ???????## """ ##?## # !#?????????????????? | | ???????## """ ##?## # ?? ???????????????? | | ???????## """ ##?## # ??## ???????????????? | | ???????## ##?## ##??## ???????????????? | | ???????####+#####?## ##????????????????????? | | ???????#### ### ? # ##????????????????????? | | ?????????## ##???? # ##????????????????????? | | "########## ### ?? # ########????????????????????? | | T##########+### ?? +^########????????????????????? | | "# # ?? # ????????????????????????????? | | "# # ?? # ????????????????????????????? | | "# """ """ !# ?? # ????????????????????????????? | | # """ """ ##??## ????????????????????????????? | | ## """ """ ##????????????????????????????????## | | ## + ????????????????????????????????## | | ## """ ##????????????????????????????????# | | ## """ ##????????????????????????????????? | | + """ """ ##???????????????????????????###### | | ## "Y ##???????????????????????????###### | | ## """ ##???????????????????????????## | +----------------------------------------------------+ Best States ------------- Heat Dissipation 53 Energy Generation 14 Energy Capacity 250 Matter Stores 300 Matter Capacity 300 Sight Range 16 Terrain Scan Density 10 ECM Strength 2 Armor Coverage 600 Evasion (%) 55 Recoil Reduction 1 Item Schematics ----------------- None Robot Schematics ------------------ None Fabricated ------------ Nothing Alien Tech Used ----------------- None Achievements -------------- None Challenges ------------ None Game ------ Seed BeamAbsorptionDisintegrator Manual? 0 Play Time 00:59:30 Cumulative 7.6 hours Start 2024.04.05 @ 17:21:56 End 2024.04.05 @ 19:20:47 Sessions 3 Manual Loads 0 Difficulty Rogue Special Mode None Game No. 20 Rogue 20 Adventurer 0 Explorer 0 Win Type - Total 0 Types 0/0/0/0/0/0/0/0/0 Lore% 13 Gallery% 13 Achievement% 13 Wizard Run 0 Options --------- Layout 1 ASCII 0 Keyboard 0 Movement Mouse Keybinds 0 Fullscreen 2 Font 32/Terminus Map View 50x35 Zoom Use 0% Tactical HUD 1 Map Filters NONE Filters NONE Steam 1 RUN: e6f03f0b-eb4f-4da3-bcbd-e0bacfbb4bc9